[Event "Championnat du monde jeunes U12F"]
[Date "2024.11.18"]
[White "Liang, Candice"]
[Black "Sri Darshini T"]
[WhiteElo "1551"]
[BlackElo "1681"]
[Round "4.32"]
[Result "0-1"]
[TimeControl "5400+30"]

1. d4 {[%clk 1:30:17]} 1... Nf6 {[%clk 1:30:55]} 2. c4 {[%clk 1:30:09]} 2... e6
{[%clk 1:31:20]} 3. Nc3 {[%clk 1:30:34]} 3... Bb4 {[%clk 1:31:47]} 4. e3 {[%clk
1:30:59]} 4... O-O {[%clk 1:31:45]} 5. Nf3 {[%clk 1:31:13]} 5... d5 {[%clk
1:31:56]} 6. Bd2 {[%clk 1:31:32]} 6... b6 {[%clk 1:30:33]} 7. cxd5 {[%clk
1:31:52]} 7... exd5 {[%clk 1:30:33]} 8. Rc1 {[%clk 1:31:12]} 8... Bb7 {[%clk
1:27:21]} 9. Bd3 {[%clk 1:30:53]} 9... Nbd7 {[%clk 1:24:35]} 10. O-O {[%clk
1:30:56]} 10... a6 {[%clk 1:17:45]} 11. a3 {[%clk 1:25:14]} 11... Bd6 {[%clk
1:17:44]} 12. b4 {[%clk 1:24:09]} 12... Ne4 {[%clk 1:13:28]} 13. Qb3 {[%clk
1:18:14]} 13... Ndf6 {[%clk 1:09:31]} 14. Qc2 {[%clk 1:15:11]} 14... Re8 {[%clk
1:07:18]} 15. h3 {[%clk 1:10:00]} 15... Qd7 {[%clk 1:02:18]} 16. Bxe4 {[%clk
1:05:12]} 16... dxe4 {[%clk 0:58:17]} 17. Ne1 {[%clk 1:00:30]} 17... a5 {[%clk
0:55:08]} 18. b5 {[%clk 0:58:25]} 18... Bxa3 {[%clk 0:54:24]} 19. Rb1 {[%clk
0:57:29]} 19... Bd6 {[%clk 0:52:37]} 20. f3 {[%clk 0:56:21]} 20... exf3 {[%clk
0:49:38]} 21. Nxf3 {[%clk 0:56:39]} 21... Ne4 {[%clk 0:46:46]} 22. Nh4 {[%clk
0:49:02]} 22... Nxc3 {[%clk 0:43:39]} 23. Qxc3 {[%clk 0:45:52]} 23... Be4 {[%clk
0:43:55]} 24. Rb2 {[%clk 0:44:15]} 24... Qe6 {[%clk 0:41:27]} 25. Bc1 {[%clk
0:41:58]} 25... Bg3 {[%clk 0:36:51]} 26. Nf3 {[%clk 0:41:50]} 26... Qd5 {[%clk
0:35:26]} 27. Bd2 {[%clk 0:36:45]} 27... a4 {[%clk 0:31:09]} 28. Qa3 {[%clk
0:34:07]} 28... Re6 {[%clk 0:29:36]} 29. Be1 {[%clk 0:29:21]} 29... Bd6 {[%clk
0:25:51]} 30. Bb4 {[%clk 0:27:35]} 30... Bg3 {[%clk 0:24:26]} 31. Be1 {[%clk
0:27:49]} 31... Bxe1 {[%clk 0:22:24]} 32. Nxe1 {[%clk 0:27:10]} 32... Rg6 {[%clk
0:22:11]} 33. Rbf2 {[%clk 0:18:09]} 33... f6 {[%clk 0:21:25]} 34. Rb2 {[%clk
0:16:44]} 34... Qh5 {[%clk 0:20:27]} 35. Kh2 {[%clk 0:15:43]} 35... Qg5 {[%clk
0:18:17]} 36. Nf3 {[%clk 0:13:33]} 36... Qg3+ {[%clk 0:18:18]} 37. Kh1 {[%clk
0:13:52]} 37... Rh6 {[%clk 0:13:45]} 38. Ng1 {[%clk 0:10:46]} 38... Kh8 {[%clk
0:13:09]} 39. Rf4 {[%clk 0:09:32]} 39... f5 {[%clk 0:12:41]} 40. Rf1 {[%clk
0:08:33]} 40... g5 {[%clk 0:10:49]} 41. Qe7 {[%clk 0:05:39]} 41... g4 {[%clk
0:07:23]} 42. Qe5+ {[%clk 0:04:52]} 42... Qxe5 {[%clk 0:07:48]} 43. dxe5 {[%clk
0:05:15]} 43... gxh3 {[%clk 0:07:57]} 44. Nf3 {[%clk 0:04:31]} 44... a3 {[%clk
0:06:57]} 45. Ra2 {[%clk 0:04:18]} 45... Bd5 {[%clk 0:06:02]} 46. Raa1 {[%clk
0:03:40]} 46... Rg8 {[%clk 0:06:07]} 47. g3 {[%clk 0:02:38]} 47... Rxg3 {[%clk
0:06:17]} 48. Kh2 {[%clk 0:02:27]} 48... Rxf3 {[%clk 0:05:37]} 49. Rxf3 {[%clk
0:02:38]} 49... Bxf3 {[%clk 0:06:06]} 50. Rxa3 {[%clk 0:03:00]} 50... Bg2 {[%clk
0:04:44]} 51. Rc3 {[%clk 0:02:41]} 51... c5 {[%clk 0:04:40]} 52. Rd3 {[%clk
0:01:54]} 52... Kg8 {[%clk 0:03:24]} 53. Rd8+ {[%clk 0:01:05]} 53... Kf7 {[%clk
0:03:51]} 54. Rb8 {[%clk 0:01:20]} 54... Re6 {[%clk 0:03:55]} 55. Kg1 {[%clk
0:01:25]} 55... Ke7 {[%clk 0:03:31]} 56. Rh8 {[%clk 0:01:32]} 56... Rxe5 {[%clk
0:03:42]} 57. Rxh7+ {[%clk 0:01:53]} 57... Kd6 {[%clk 0:03:54]} 58. Kf2 {[%clk
0:01:42]} 58... c4 {[%clk 0:03:44]} 59. Rh4 {[%clk 0:01:50]} 59... Kc5 {[%clk
0:04:00]} 60. Rh5 {[%clk 0:01:10]} 60... Rd5 {[%clk 0:03:56]} 61. Kg3 {[%clk
0:00:57]} 61... f4+ {[%clk 0:04:12]} 62. Kg4 {[%clk 0:01:02]} 62... Rxh5 {[%clk
0:04:34]} 63. Kxh5 {[%clk 0:01:14]} 63... h2 {[%clk 0:04:57]} 64. exf4 {[%clk
0:01:40]} 64... h1=Q+ {[%clk 0:05:18]} 65. Kg6 {[%clk 0:02:01]} 65... Qh8 {[%clk
0:05:30]} 66. f5 {[%clk 0:02:21]} 66... Kd6 {[%clk 0:05:32]} 67. f6 {[%clk
0:02:41]} 67... Ke6 {[%clk 0:05:51]} 0-1

[Variant "Standard"]
[Site "Europe Echecs"]

[Event "Championnat du monde jeunes U12F"]
[Date "2024.11.18"]
[White "Istratova, Nika"]
[Black "Radenkovic, Lena"]
[WhiteElo "1473"]
[BlackElo "1675"]
[Round "4.33"]
[Result "1/2-1/2"]
[TimeControl "5400+30"]

1. e4 {[%clk 1:30:59]} 1... e5 {[%clk 1:29:22]} 2. Nf3 {[%clk 1:31:21]} 2... Nc6
{[%clk 1:28:19]} 3. Nc3 {[%clk 1:31:36]} 3... Nf6 {[%clk 1:26:58]} 4. Bb5 {[%clk
1:31:47]} 4... d6 {[%clk 1:20:31]} 5. h3 {[%clk 1:28:20]} 5... Bd7 {[%clk
1:18:06]} 6. d4 {[%clk 1:23:56]} 6... a6 {[%clk 1:12:42]} 7. Be2 {[%clk
1:18:10]} 7... Be7 {[%clk 1:09:13]} 8. d5 {[%clk 1:14:18]} 8... Nb8 {[%clk
1:07:53]} 9. O-O {[%clk 1:10:52]} 9... O-O {[%clk 1:06:02]} 10. Re1 {[%clk
1:06:59]} 10... c6 {[%clk 1:03:03]} 11. Bf1 {[%clk 1:02:44]} 11... cxd5 {[%clk
0:58:59]} 12. exd5 {[%clk 0:58:31]} 12... Bf5 {[%clk 0:55:54]} 13. Bd3 {[%clk
0:53:58]} 13... Qc8 {[%clk 0:52:09]} 14. Bxf5 {[%clk 0:48:41]} 14... Qxf5 {[%clk
0:52:03]} 15. Nh4 {[%clk 0:48:04]} 15... Qd7 {[%clk 0:49:40]} 16. Nf3 {[%clk
0:40:00]} 16... a5 {[%clk 0:47:15]} 17. Qd3 {[%clk 0:33:24]} 17... Na6 {[%clk
0:44:07]} 18. a3 {[%clk 0:28:07]} 18... Nc5 {[%clk 0:42:12]} 19. Qb5 {[%clk
0:23:58]} 19... Qxb5 {[%clk 0:36:02]} 20. Nxb5 {[%clk 0:24:18]} 20... Nxd5
{[%clk 0:33:07]} 21. Rd1 {[%clk 0:23:40]} 21... Nf6 {[%clk 0:32:46]} 22. Nxd6
{[%clk 0:23:07]} 22... Bxd6 {[%clk 0:32:44]} 23. Rxd6 {[%clk 0:20:47]} 23... e4
{[%clk 0:28:34]} 24. Nh2 {[%clk 0:17:57]} 24... Rfd8 {[%clk 0:25:56]} 25. Rxd8+
{[%clk 0:15:30]} 25... Rxd8 {[%clk 0:26:07]} 26. Be3 {[%clk 0:15:13]} 26... b6
{[%clk 0:23:35]} 27. b4 {[%clk 0:12:55]} 27... Na4 {[%clk 0:21:26]} 28. bxa5
{[%clk 0:10:12]} 28... bxa5 {[%clk 0:21:30]} 29. Bf4 {[%clk 0:08:02]} 29... Rc8
{[%clk 0:18:40]} 30. Rd1 {[%clk 0:06:13]} 30... h6 {[%clk 0:17:28]} 31. Rd2
{[%clk 0:02:26]} 31... Nc3 {[%clk 0:14:36]} 32. Be5 {[%clk 0:01:38]} 32... Nb1
{[%clk 0:13:38]} 33. Re2 {[%clk 0:01:19]} 33... Nxa3 {[%clk 0:13:22]} 34. Bxf6
{[%clk 0:01:32]} 34... gxf6 {[%clk 0:13:17]} 35. Rxe4 {[%clk 0:01:46]} 35...
Nxc2 {[%clk 0:13:24]} 36. Ng4 {[%clk 0:01:23]} 36... Kg7 {[%clk 0:13:02]} 37.
Rf4 {[%clk 0:01:06]} 37... Rc6 {[%clk 0:12:29]} 38. Ra4 {[%clk 0:00:55]} 38...
Ra6 {[%clk 0:11:53]} 39. Ne3 {[%clk 0:00:58]} 39... Nxe3 {[%clk 0:11:19]} 40.
fxe3 {[%clk 0:01:23]} 40... f5 {[%clk 0:11:32]} 41. Kf2 {[%clk 0:01:19]} 41...
Kf6 {[%clk 0:11:41]} 42. Ke2 {[%clk 0:01:25]} 42... Ke5 {[%clk 0:11:36]} 43. Kf3
{[%clk 0:01:04]} 43... h5 {[%clk 0:09:21]} 44. g3 {[%clk 0:00:44]} 44... Ra8
{[%clk 0:07:23]} 45. e4 fxe4+ {[%clk 0:06:45]} 46. Rxe4+ Kd5 {[%clk 0:06:49]}
47. Ra4 {[%clk 0:01:18]} 47... f5 {[%clk 0:06:53]} 48. Kf4 {[%clk 0:01:31]}
48... Kc5 {[%clk 0:06:07]} 49. Kxf5 {[%clk 0:01:37]} 49... Kb5 {[%clk 0:06:28]}
50. Ra1 {[%clk 0:01:59]} 50... a4 {[%clk 0:06:09]} 51. g4 {[%clk 0:02:00]} 51...
Kb4 {[%clk 0:03:49]} 52. g5 {[%clk 0:02:18]} 52... a3 {[%clk 0:03:33]} 53. g6
{[%clk 0:02:36]} 53... Kb3 {[%clk 0:03:16]} 54. g7 {[%clk 0:02:20]} 54... Kb2
{[%clk 0:02:49]} 55. Rxa3 Kxa3 {[%clk 0:02:54]} 56. Kg6 {[%clk 0:02:38]} 56...
h4 {[%clk 0:03:08]} 57. Kh7 {[%clk 0:02:36]} 57... Kb4 {[%clk 0:02:20]} 58. g8=Q
{[%clk 0:02:49]} 58... Rxg8 {[%clk 0:02:38]} 59. Kxg8 {[%clk 0:03:17]} 59... Kc4
{[%clk 0:03:00]} 60. Kg7 {[%clk 0:03:38]} 60... Kd4 {[%clk 0:03:20]} 61. Kg6
{[%clk 0:03:57]} 61... Ke5 {[%clk 0:03:36]} 62. Kg5 {[%clk 0:04:16]} 62... Ke4
{[%clk 0:03:41]} 63. Kxh4 {[%clk 0:01:15]} 63... Kf4 {[%clk 0:03:59]} 64. Kh5
{[%clk 0:01:33]} 64... Kf5 {[%clk 0:04:21]} 65. Kh6 {[%clk 0:01:12]} 65... Kf6
{[%clk 0:04:20]} 66. h4 {[%clk 0:01:06]} 66... Kf7 {[%clk 0:04:37]} 67. Kh7
{[%clk 0:01:10]} 67... Kf6 {[%clk 0:04:54]} 68. h5 {[%clk 0:00:40]} 68... Kf7
{[%clk 0:05:10]} 69. h6 {[%clk 0:00:35]} 69... Kf8 {[%clk 0:05:31]} 70. Kg6
{[%clk 0:00:37]} 70... Kg8 {[%clk 0:05:52]} 71. Kg5 {[%clk 0:00:36]} 71... Kh7
{[%clk 0:05:59]} 72. Kh5 {[%clk 0:00:55]} 72... Kg8 {[%clk 0:06:20]} 73. Kg6
{[%clk 0:01:09]} 73... Kh8 {[%clk 0:06:37]} 1/2-1/2

[Variant "Standard"]
[Site "Europe Echecs"]

[Event "Championnat du monde jeunes U12F"]
[Date "2024.11.18"]
[White "Huang, Lucia"]
[Black "Hiznicenco, Valeria"]
[WhiteElo "1621"]
[BlackElo "1513"]
[Round "4.36"]
[Result "1-0"]
[TimeControl "5400+30"]

1. e4 {[%clk 1:30:57]} 1... e5 {[%clk 1:30:46]} 2. Nf3 {[%clk 1:31:22]} 2... Nc6
{[%clk 1:31:05]} 3. Bc4 {[%clk 1:31:47]} 3... Nf6 {[%clk 1:31:13]} 4. d3 {[%clk
1:31:48]} 4... Be7 {[%clk 1:30:38]} 5. c3 {[%clk 1:32:00]} 5... Na5 {[%clk
1:29:42]} 6. Bb5 {[%clk 1:30:53]} 6... c6 {[%clk 1:29:37]} 7. Ba4 {[%clk
1:31:16]} 7... b5 {[%clk 1:29:03]} 8. Bc2 {[%clk 1:31:31]} 8... d6 {[%clk
1:28:41]} 9. Nbd2 {[%clk 1:31:12]} 9... O-O {[%clk 1:28:09]} 10. Nf1 {[%clk
1:30:36]} 10... Re8 {[%clk 1:26:49]} 11. Ng3 {[%clk 1:30:51]} 11... Bf8 {[%clk
1:26:01]} 12. O-O {[%clk 1:30:59]} 12... d5 {[%clk 1:22:40]} 13. Re1 {[%clk
1:23:27]} 13... d4 {[%clk 1:01:26]} 14. Bd2 {[%clk 1:14:18]} 14... c5 {[%clk
1:00:48]} 15. cxd4 {[%clk 1:00:19]} 15... exd4 {[%clk 0:53:57]} 16. h3 {[%clk
0:53:48]} 16... g6 {[%clk 0:47:02]} 17. Qc1 {[%clk 0:49:55]} 17... Bg7 {[%clk
0:39:00]} 18. a4 {[%clk 0:41:52]} 18... bxa4 {[%clk 0:30:28]} 19. Bxa4 {[%clk
0:41:48]} 19... Nd7 {[%clk 0:25:44]} 20. Bxa5 {[%clk 0:39:52]} 20... Qe7 {[%clk
0:19:49]} 21. Bc6 {[%clk 0:38:23]} 21... Rb8 {[%clk 0:18:49]} 22. Bc7 {[%clk
0:38:34]} 22... Rb4 {[%clk 0:18:22]} 23. Rxa7 {[%clk 0:36:27]} 23... Qf6 {[%clk
0:15:34]} 24. Bxd7 {[%clk 0:35:06]} 24... Bxd7 {[%clk 0:15:32]} 25. Ba5 {[%clk
0:35:07]} 25... Ra4 {[%clk 0:14:45]} 26. b3 {[%clk 0:35:26]} 26... Ra2 {[%clk
0:13:15]} 27. Qb1 {[%clk 0:35:40]} 27... Ra3 {[%clk 0:13:03]} 28. Qb2 {[%clk
0:36:05]} 28... Rxa5 {[%clk 0:13:12]} 29. Rxa5 {[%clk 0:36:28]} 29... Qd6 {[%clk
0:11:53]} 30. Rea1 {[%clk 0:36:25]} 30... Rf8 {[%clk 0:10:31]} 31. Qa3 {[%clk
0:36:18]} 1-0

[Variant "Standard"]
[Site "Europe Echecs"]

[Event "Championnat du monde jeunes U12F"]
[Date "2024.11.18"]
[White "Ordonez Alarcon, Daniela"]
[Black "Hrckova, Anna"]
[WhiteElo "1606"]
[BlackElo "1441"]
[Round "4.38"]
[Result "1-0"]
[TimeControl "5400+30"]

1. d4 {[%clk 1:30:56]} 1... d5 {[%clk 1:30:55]} 2. c4 {[%clk 1:31:19]} 2... c6
{[%clk 1:31:21]} 3. Nc3 {[%clk 1:31:40]} 3... Nf6 {[%clk 1:31:27]} 4. Nf3 {[%clk
1:32:03]} 4... e6 {[%clk 1:31:35]} 5. Bg5 {[%clk 1:30:52]} 5... h6 {[%clk
1:31:33]} 6. Bh4 {[%clk 1:23:21]} 6... Be7 {[%clk 1:30:16]} 7. cxd5 {[%clk
1:23:24]} 7... exd5 {[%clk 1:30:05]} 8. Qc2 {[%clk 1:21:14]} 8... Nbd7 {[%clk
1:23:20]} 9. e3 {[%clk 1:20:14]} 9... b5 {[%clk 1:23:31]} 10. Bd3 {[%clk
1:13:24]} 10... Bb7 {[%clk 1:23:23]} 11. O-O {[%clk 1:12:15]} 11... a6 {[%clk
1:23:26]} 12. a3 {[%clk 1:02:34]} 12... O-O {[%clk 1:17:55]} 13. b4 {[%clk
0:57:28]} 13... a5 {[%clk 1:18:15]} 14. Qb2 {[%clk 0:52:17]} 14... axb4 {[%clk
0:56:24]} 15. axb4 {[%clk 0:52:33]} 15... Qc7 {[%clk 0:53:23]} 16. Bg3 {[%clk
0:48:48]} 16... Bd6 {[%clk 0:53:40]} 17. Bxd6 {[%clk 0:48:45]} 17... Qxd6 {[%clk
0:53:52]} 18. Nd2 {[%clk 0:47:10]} 18... Rfe8 {[%clk 0:51:18]} 19. Na2 {[%clk
0:32:43]} 19... Nb6 {[%clk 0:29:17]} 20. Nb3 {[%clk 0:29:39]} 20... Na4 {[%clk
0:28:38]} 21. Qc2 {[%clk 0:28:52]} 21... Ng4 {[%clk 0:19:33]} 22. g3 {[%clk
0:29:08]} 22... Nf6 {[%clk 0:18:57]} 23. Nc5 {[%clk 0:25:03]} 23... Nxc5 {[%clk
0:18:52]} 24. bxc5 {[%clk 0:18:58]} 24... Qe7 {[%clk 0:14:10]} 25. Nb4 {[%clk
0:19:16]} 25... Ne4 {[%clk 0:13:10]} 26. Na2 {[%clk 0:09:47]} 26... Qf6 {[%clk
0:10:19]} 27. Nc3 {[%clk 0:09:42]} 27... Ng5 {[%clk 0:09:55]} 28. f4 {[%clk
0:06:59]} 28... Rxe3 {[%clk 0:08:12]} 29. Rxa8+ {[%clk 0:06:01]} 29... Bxa8
{[%clk 0:08:33]} 30. fxg5 {[%clk 0:05:10]} 30... Qxd4 {[%clk 0:08:38]} 31. Qf2
{[%clk 0:02:47]} 31... Rxd3 {[%clk 0:09:00]} 32. Qxd4 {[%clk 0:03:04]} 32...
Rxd4 {[%clk 0:09:22]} 33. gxh6 {[%clk 0:03:31]} 33... gxh6 {[%clk 0:09:37]} 34.
Ne2 {[%clk 0:03:39]} 34... Rc4 {[%clk 0:10:00]} 35. Rc1 {[%clk 0:03:49]} 35...
Rb4 {[%clk 0:06:30]} 36. Kf2 {[%clk 0:03:35]} 36... Kg7 {[%clk 0:06:44]} 37. Ke3
{[%clk 0:03:59]} 37... Re4+ {[%clk 0:06:52]} 38. Kd3 {[%clk 0:04:24]} 38... Kf6
{[%clk 0:06:52]} 39. Nd4 {[%clk 0:04:04]} 39... Kg5 {[%clk 0:05:31]} 40. Rf1
{[%clk 0:03:50]} 40... Kg4 {[%clk 0:04:56]} 41. Rxf7 {[%clk 0:03:40]} 41... Re8
{[%clk 0:03:28]} 42. Rf6 {[%clk 0:02:09]} 42... Rc8 {[%clk 0:02:35]} 43. Rxh6
{[%clk 0:02:33]} 43... Kg5 {[%clk 0:02:23]} 44. Rd6 {[%clk 0:02:11]} 44... b4
{[%clk 0:02:14]} 45. Kc2 {[%clk 0:01:57]} 45... Kg4 {[%clk 0:01:08]} 46. Kb3
{[%clk 0:02:17]} 46... Kh3 {[%clk 0:01:20]} 47. Rh6+ {[%clk 0:02:44]} 47... Kg2
{[%clk 0:01:37]} 48. Kxb4 {[%clk 0:03:07]} 48... Rb8+ {[%clk 0:01:32]} 49. Ka5
{[%clk 0:03:06]} 49... Rb1 {[%clk 0:01:24]} 50. Nxc6 {[%clk 0:01:16]} 50... Bxc6
{[%clk 0:00:38]} 51. Rxc6 {[%clk 0:01:41]} 51... d4 {[%clk 0:01:02]} 52. Rd6
{[%clk 0:01:57]} 52... Rc1 {[%clk 0:00:37]} 53. Kb4 {[%clk 0:01:43]} 53... d3
{[%clk 0:00:33]} 54. Rxd3 {[%clk 0:02:09]} 54... Kxh2 {[%clk 0:00:54]} 55. Rc3
{[%clk 0:02:31]} 55... Rb1+ {[%clk 0:01:04]} 56. Kc4 {[%clk 0:02:53]} 56... Rb8
{[%clk 0:01:18]} 57. c6 {[%clk 0:03:03]} 1-0

[Variant "Standard"]
[Site "Europe Echecs"]

[Event "Championnat du monde jeunes U12F"]
[Date "2024.11.18"]
[White "Kovalskyy, Alicia"]
[Black "Jung, Minju"]
[WhiteElo "1871"]
[BlackElo "1457"]
[Round "4.40"]
[Result "1-0"]
[TimeControl "5400+30"]

1. e4 {[%clk 1:30:59]} 1... e5 {[%clk 1:30:20]} 2. Nf3 {[%clk 1:31:23]} 2... Nc6
{[%clk 1:30:14]} 3. Bc4 {[%clk 1:31:44]} 3... Bc5 {[%clk 1:29:54]} 4. c3 {[%clk
1:32:08]} 4... Nf6 {[%clk 1:29:19]} 5. d3 {[%clk 1:32:32]} 5... O-O {[%clk
1:27:01]} 6. O-O {[%clk 1:32:50]} 6... d6 {[%clk 1:24:42]} 7. Re1 {[%clk
1:28:10]} 7... Be6 {[%clk 1:22:20]} 8. Nbd2 {[%clk 1:27:23]} 8... Ne7 {[%clk
1:16:08]} 9. Bxe6 {[%clk 1:21:29]} 9... fxe6 {[%clk 1:15:39]} 10. d4 {[%clk
1:19:00]} 10... exd4 {[%clk 1:13:26]} 11. cxd4 {[%clk 1:18:22]} 11... Bb6 {[%clk
1:09:38]} 12. Nc4 {[%clk 1:12:57]} 12... Ng6 {[%clk 0:59:26]} 13. Nxb6 {[%clk
0:54:50]} 13... axb6 {[%clk 0:58:33]} 14. Bd2 {[%clk 0:39:15]} 14... c5 {[%clk
0:51:58]} 15. a3 {[%clk 0:26:31]} 15... d5 {[%clk 0:40:04]} 16. Ng5 {[%clk
0:22:27]} 16... Re8 {[%clk 0:25:43]} 17. e5 {[%clk 0:22:15]} 17... Nd7 {[%clk
0:22:23]} 18. Qh5 {[%clk 0:21:31]} 18... Ndf8 {[%clk 0:20:32]} 19. Nxh7 {[%clk
0:17:55]} 19... Nxh7 {[%clk 0:17:41]} 20. Qxg6 {[%clk 0:18:09]} 20... cxd4
{[%clk 0:15:15]} 21. Qg4 {[%clk 0:15:50]} 21... Qe7 {[%clk 0:12:03]} 22. Qxd4
{[%clk 0:12:48]} 22... Qc5 {[%clk 0:10:59]} 23. Be3 {[%clk 0:12:59]} 23... Qxd4
{[%clk 0:10:57]} 24. Bxd4 {[%clk 0:13:23]} 24... b5 {[%clk 0:10:12]} 25. Rac1
{[%clk 0:09:55]} 25... Rac8 {[%clk 0:08:55]} 26. Rc3 {[%clk 0:09:29]} 26... Rxc3
{[%clk 0:08:51]} 27. bxc3 {[%clk 0:09:40]} 27... Ra8 {[%clk 0:08:28]} 28. Bc5
{[%clk 0:08:28]} 28... Ng5 {[%clk 0:07:47]} 29. f3 {[%clk 0:08:41]} 29... Nf7
{[%clk 0:07:10]} 30. f4 {[%clk 0:08:10]} 30... Nd8 {[%clk 0:06:43]} 31. Rb1
{[%clk 0:07:48]} 31... Ra4 {[%clk 0:05:15]} 32. g3 {[%clk 0:06:52]} 32... Rc4
{[%clk 0:04:46]} 33. Bd4 {[%clk 0:04:15]} 33... Nc6 {[%clk 0:04:50]} 34. Rxb5
{[%clk 0:03:04]} 34... Nxd4 {[%clk 0:04:56]} 35. cxd4 {[%clk 0:03:31]} 35...
Rxd4 {[%clk 0:05:11]} 36. Rxb7 {[%clk 0:03:43]} 36... Rd1+ {[%clk 0:05:23]} 37.
Kg2 {[%clk 0:04:08]} 37... Rd2+ {[%clk 0:05:21]} 38. Kh3 {[%clk 0:04:16]} 38...
Ra2 {[%clk 0:05:28]} 39. Re7 {[%clk 0:04:07]} 39... Rxa3 {[%clk 0:05:34]} 40.
Rxe6 {[%clk 0:04:31]} 40... d4 {[%clk 0:05:54]} 41. Rd6 {[%clk 0:04:53]} 41...
d3 {[%clk 0:06:16]} 42. e6 {[%clk 0:03:15]} 42... Kf8 {[%clk 0:04:46]} 43. Rd7
{[%clk 0:03:24]} 43... Ke8 {[%clk 0:03:27]} 44. Rxg7 {[%clk 0:03:12]} 44... d2
45. Rd7 {[%clk 0:03:26]} 45... Ra2 {[%clk 0:00:51]} 46. f5 {[%clk 0:03:38]}
46... Kf8 {[%clk 0:00:39]} 47. f6 {[%clk 0:03:59]} 47... d1=Q {[%clk 0:00:32]}
48. Rxd1 {[%clk 0:04:17]} 48... Ra8 {[%clk 0:00:39]} 49. e7+ {[%clk 0:04:39]}
49... Kf7 {[%clk 0:01:02]} 50. Rd8 {[%clk 0:05:02]} 50... Rxd8 {[%clk 0:01:17]}
51. exd8=Q Kg6 {[%clk 0:01:30]} 52. Qe7 {[%clk 0:05:32]} 52... Kg5 {[%clk
0:01:45]} 53. f7+ {[%clk 0:05:53]} 53... Kg6 {[%clk 0:02:05]} 54. f8=Q {[%clk
0:06:06]} 54... Kh5 {[%clk 0:02:25]} 55. Qh7+ {[%clk 0:06:08]} 55... Kg5 {[%clk
0:02:45]} 56. Qhh6# 1-0

[Variant "Standard"]
[Site "Europe Echecs"]

[Event "Championnat du monde jeunes U12F"]
[Date "2024.11.18"]
[White "Ivanova, Gabriela"]
[Black "Groselj, Mirjam"]
[WhiteElo "1680"]
[BlackElo "1470"]
[Round "4.41"]
[Result "1-0"]
[TimeControl "5400+30"]

1. d4 {[%clk 1:30:56]} 1... d5 {[%clk 1:30:51]} 2. Nf3 {[%clk 1:30:52]} 2... Nf6
{[%clk 1:30:29]} 3. g3 {[%clk 1:30:26]} 3... e6 {[%clk 1:30:08]} 4. Bg2 {[%clk
1:30:27]} 4... Be7 {[%clk 1:29:59]} 5. c4 {[%clk 1:30:16]} 5... c6 {[%clk
1:29:21]} 6. O-O {[%clk 1:27:27]} 6... O-O {[%clk 1:29:06]} 7. cxd5 {[%clk
1:23:20]} 7... exd5 {[%clk 1:25:03]} 8. Bf4 {[%clk 1:18:36]} 8... Bf5 {[%clk
1:21:56]} 9. Nc3 {[%clk 1:18:21]} 9... Nbd7 {[%clk 1:19:09]} 10. Rc1 {[%clk
1:16:17]} 10... Re8 {[%clk 1:14:25]} 11. Re1 {[%clk 1:12:53]} 11... Nb6 {[%clk
1:11:23]} 12. Ne5 {[%clk 1:10:04]} 12... Bd6 {[%clk 1:09:18]} 13. e3 {[%clk
1:02:30]} 13... Nc4 {[%clk 0:58:56]} 14. Nxc4 {[%clk 1:01:44]} 14... dxc4 {[%clk
0:58:39]} 15. Bxd6 {[%clk 1:01:46]} 15... Qxd6 {[%clk 0:58:46]} 16. e4 {[%clk
0:59:17]} 16... Bxe4 {[%clk 0:53:15]} 17. Nxe4 {[%clk 0:57:53]} 17... Nxe4
{[%clk 0:52:59]} 18. Bxe4 {[%clk 0:57:38]} 18... b5 {[%clk 0:52:03]} 19. b3
{[%clk 0:53:49]} 19... cxb3 {[%clk 0:50:46]} 20. Rxc6 {[%clk 0:51:27]} 20... Qd7
{[%clk 0:49:46]} 21. Rc1 {[%clk 0:49:48]} 21... b2 {[%clk 0:46:44]} 22. Rb1
{[%clk 0:49:38]} 22... Rad8 {[%clk 0:46:43]} 23. Rxb2 {[%clk 0:48:01]} 23... h6
{[%clk 0:44:51]} 24. Rb3 {[%clk 0:41:23]} 24... Qxd4 {[%clk 0:42:41]} 25. Qxd4
{[%clk 0:41:32]} 25... Rxd4 {[%clk 0:42:48]} 26. Bh7+ {[%clk 0:40:40]} 26...
Kxh7 {[%clk 0:43:06]} 27. Rxe8 {[%clk 0:40:39]} 27... a6 {[%clk 0:43:12]} 28.
Ra3 {[%clk 0:40:07]} 28... Rd6 {[%clk 0:43:02]} 29. Ra8 {[%clk 0:40:15]} 29...
Rd1+ {[%clk 0:43:08]} 30. Kg2 {[%clk 0:40:34]} 30... b4 {[%clk 0:43:19]} 31.
R3xa6 {[%clk 0:40:33]} 31... Rd7 {[%clk 0:43:11]} 32. Rb8 {[%clk 0:40:41]} 32...
Rd4 {[%clk 0:42:56]} 33. Ra4 {[%clk 0:40:41]} 33... Rd2 {[%clk 0:43:07]} 34.
Rbxb4 {[%clk 0:40:56]} 34... Rd8 {[%clk 0:42:56]} 35. Ra7 {[%clk 0:40:51]} 35...
f6 {[%clk 0:43:05]} 36. Rbb7 {[%clk 0:41:08]} 36... Rg8 {[%clk 0:43:24]} 37. a4
{[%clk 0:41:21]} 37... f5 {[%clk 0:43:43]} 38. a5 {[%clk 0:41:43]} 38... Kg6
{[%clk 0:44:06]} 39. Rb6+ {[%clk 0:41:38]} 39... Kh7 {[%clk 0:44:26]} 40. a6
{[%clk 0:41:59]} 40... Rf8 {[%clk 0:44:38]} 41. Rb4 {[%clk 0:41:43]} 41... Re8
{[%clk 0:44:49]} 42. Rd7 {[%clk 0:42:00]} 42... Rf8 {[%clk 0:44:53]} 43. a7
{[%clk 0:42:16]} 43... Ra8 {[%clk 0:45:18]} 44. Rb8 {[%clk 0:42:40]} 1-0

[Variant "Standard"]
[Site "Europe Echecs"]

[Event "Championnat du monde jeunes U12F"]
[Date "2024.11.18"]
[White "Chen, Pin-I"]
[Black "Liu, Jingyu"]
[WhiteElo "1601"]
[BlackElo "1680"]
[Round "4.42"]
[Result "1/2-1/2"]
[TimeControl "5400+30"]

1. d4 {[%clk 1:30:57]} 1... d5 {[%clk 1:30:54]} 2. c4 {[%clk 1:31:18]} 2... e6
{[%clk 1:31:20]} 3. Nf3 {[%clk 1:31:38]} 3... Nf6 {[%clk 1:31:43]} 4. g3 {[%clk
1:32:01]} 4... Be7 {[%clk 1:32:08]} 5. Bg2 {[%clk 1:32:24]} 5... O-O {[%clk
1:32:29]} 6. O-O {[%clk 1:32:44]} 6... c6 {[%clk 1:32:55]} 7. Qc2 {[%clk
1:32:54]} 7... b6 {[%clk 1:33:18]} 8. Nc3 {[%clk 1:32:59]} 8... Bb7 {[%clk
1:33:30]} 9. Rd1 {[%clk 1:32:54]} 9... Na6 {[%clk 1:33:24]} 10. a3 {[%clk
1:30:54]} 10... c5 {[%clk 1:21:04]} 11. dxc5 {[%clk 1:23:45]} 11... bxc5 {[%clk
1:21:03]} 12. e4 {[%clk 1:05:37]} 12... d4 {[%clk 1:12:55]} 13. e5 {[%clk
0:52:57]} 13... Nd7 {[%clk 1:12:17]} 14. Ne4 {[%clk 0:52:14]} 14... Qc7 {[%clk
1:01:52]} 15. Bf4 {[%clk 0:51:35]} 15... h6 {[%clk 0:57:31]} 16. h4 {[%clk
0:48:24]} 16... Bxe4 {[%clk 0:54:17]} 17. Qxe4 {[%clk 0:48:33]} 17... Rab8
{[%clk 0:54:31]} 18. Rab1 {[%clk 0:45:10]} 18... Rb6 {[%clk 0:51:39]} 19. Rd3
{[%clk 0:37:13]} 19... Nab8 {[%clk 0:50:34]} 20. b3 {[%clk 0:23:30]} 20... Nc6
{[%clk 0:50:46]} 21. Rd2 {[%clk 0:19:04]} 21... Rfb8 {[%clk 0:46:16]} 22. Rdb2
{[%clk 0:18:31]} 22... Na5 {[%clk 0:38:59]} 23. Qd3 {[%clk 0:17:18]} 23... Nc6
{[%clk 0:37:41]} 24. Qe4 {[%clk 0:17:30]} 24... Na5 {[%clk 0:29:01]} 25. Qd3
{[%clk 0:17:51]} 25... Nc6 {[%clk 0:28:15]} 26. Qe4 {[%clk 0:18:15]} 1/2-1/2

[Variant "Standard"]
[Site "Europe Echecs"]